lending/lending_fUSD_20260328
["ID","MTS","AMOUNT","RATE_DAILY","PERIOD"]
[418985048,1774710640108,-157.65,0.00013805,2]
[418985049,1774710640118,-1680.0,0.00013826,2]
[418985050,1774710640128,-387.87,0.00013947,2]
[418985051,1774710640137,-150.0,0.00013973,2]
[418985052,1774710640147,-150.0,0.00013973,2]
[418985053,1774710640156,-150.0,0.00013973,2]
[418985054,1774710640166,-150.0,0.00013973,2]
[418985055,1774710640176,-496.46404275,0.00013977,2]
[418985056,1774710640185,-517.0,0.00014,2]
[418985057,1774710640194,-7029.87228447,0.00014,7]
[418985058,1774710640204,-500.0,0.0001404,2]
[418985059,1774710640213,-11332.91310261,0.00014062,2]
[418985060,1774710640222,-166.66,0.00014097,2]
[418985061,1774710640232,-150.0,0.000141,2]
[418985062,1774710640241,-1330.35,0.00014106,2]
[418985063,1774710640251,-189.539922,0.00014146,7]
[418985064,1774710640260,-196.7833,0.000142,2]
[418985065,1774710640406,-6171.8316454,0.00014237,2]
[418985066,1774710640417,-388.89301164,0.00014237,2]
[418985067,1774710640427,-150.0,0.00014247,2]
[418985068,1774710640436,-150.0,0.00014247,2]
[418985069,1774710640446,-150.0,0.00014247,2]
[418985070,1774710640455,-376.41872134,0.00014248,2]
[418985071,1774710640465,-341.92538258,0.000143,30]
[418985072,1774710640475,-583.72695629,0.00014314,2]
[418985073,1774710640483,-1000.0,0.00014316,2]
[418985074,1774710640493,-482.12,0.00014352,2]
[418985075,1774710640502,-1570.0,0.000144,2]
[418985076,1774710640511,-2807.0,0.000144,2]
[418985077,1774710640520,-161.0,0.000144,2]
[418985079,1774710640529,-161.0,0.000144,2]
[418985081,1774710640539,-11332.91310261,0.00014434,2]
[418985083,1774710640548,-500.0,0.000146,2]
[418985085,1774710640557,-1570.0,0.0001472,2]
[418985086,1774710640566,-2807.0,0.0001472,2]
[418985087,1774710640575,-157.65,0.00014791,2]
[418985088,1774710640584,-11332.91310261,0.00014807,2]
[418985089,1774710640594,-433.0,0.00014857,2]
[418985090,1774710640603,-300.0,0.00015,2]
[418985091,1774710640613,-232.24172,0.00015053,7]
[418985092,1774710640622,-160.0,0.00015053,7]
[418985093,1774710640632,-315.899871,0.00015053,7]
[418985094,1774710640641,-160.0,0.00015053,7]
[418985095,1774710640650,-445.0,0.00015116,2]
[418985096,1774710640659,-587.0,0.0001513,2]
[418985097,1774710640668,-303.76947288,0.00015148,2]
[418985098,1774710640678,-11332.91310261,0.00015179,2]
[418985099,1774710640687,-2351.0,0.00015209,2]
[418985100,1774710640697,-161.0,0.0001534,2]
[418985101,1774710640706,-161.0,0.0001536,2]
[418985102,1774710640715,-1570.0,0.0001536,2]
[418985103,1774710640724,-2807.0,0.0001536,2]
[418985104,1774710640734,-2807.0,0.0001536,2]
[418985105,1774710640743,-2807.0,0.00015366,2]
[418985106,1774710640752,-190.612356,0.00015368,7]
[418985107,1774710640761,-496.46404275,0.00015382,2]
[418985108,1774710640770,-258.1578,0.000155,2]
[418985109,1774710640779,-11332.91310261,0.00015552,2]
[418985110,1774710640788,-4722.0,0.00015557,2]
[418985111,1774710640797,-732.54446763,0.00015634,2]
[418985112,1774710640806,-160.0,0.00015644,2]
[418985113,1774710640815,-160.0,0.00015645,2]
[418985114,1774710640824,-959.64475997,0.00015645,2]
[418985115,1774710640833,-2807.0,0.00015686,2]
[418985116,1774710640842,-3100.0,0.000157,5]
[418985117,1774710640851,-800.0,0.000157,5]
[418985118,1774710640860,-474.0,0.00015752,2]
[418985119,1774710640869,-157.65,0.00015777,2]
[418985120,1774710640878,-3100.0,0.000158,5]
[418985121,1774710640887,-800.0,0.000158,5]
[418985122,1774710640896,-474.0,0.00015823,2]
[418985123,1774710640906,-3100.0,0.000159,5]
[418985124,1774710640916,-800.0,0.000159,5]
[418985125,1774710640926,-6171.8316454,0.000159,2]
[418985126,1774710640935,-388.89301164,0.000159,2]
[418985127,1774710640944,-186.53641486,0.000159,2]
[418985128,1774710640953,-376.41872134,0.00015924,2]
[418985129,1774710640962,-11332.91310261,0.00015924,2]
[418985130,1774710640972,-474.0,0.00015947,2]
[418985131,1774710640980,-500.99348882,0.00015973,2]
[418985132,1774710640990,-500.0,0.00015973,2]
[418985133,1774710640999,-500.42331564,0.00015973,2]
[418985134,1774710641008,-389.39669243,0.00015973,2]
[418985135,1774710641018,-500.0,0.00015973,2]
[418985136,1774710641027,-486.46901262,0.0001599,2]
[418985137,1774710641036,-486.46901262,0.0001599,2]
[418985138,1774710641045,-474.0,0.00015996,2]
[418985139,1774710641054,-4642.95,0.00016,2]
[418985140,1774710641063,-3905.21,0.00016,2]
[418985141,1774710641072,-7772140.15989346,0.00016,2]
[418985142,1774710641091,-1927.46250775,0.00016,2]
[418985143,1774710641102,-4001.49474716,0.00016,2]
[418985144,1774710641113,-451.15504761,0.00016,2]
[418985145,1774710641460,-4368.552554,0.00016,2]
[418985146,1774710641472,-2098044.5966419,0.00016,2]
[418985147,1774710641481,-625.65505968,0.00016,2]
[418985149,1774710641490,-201.325442,0.00016,2]
[418985151,1774710641500,-5737773.45561717,0.00016,2]
[418985152,1774710643543,-1255.28822216,0.00012573,2]
[418985153,1774710643553,-4443.3060718,0.00013033,2]
[418985154,1774710643562,-4443.3060718,0.00013989,2]
[418985155,1774710643572,-101521.00601116,0.00016,2]
[418985156,1774710644012,-5340.95403698,0.00016,2]
[418985157,1774710644141,-1271.62700607,0.00016,2]
[418985158,1774710644155,-946.584817,0.00016,2]
[418985159,1774710644169,-722.8955016,0.00016,2]
[418985160,1774710644180,-346.4546635,0.00016,2]
[418985163,1774710646268,-828.22564671,0.00012569,2]
[418985164,1774710646278,-828.22564671,0.00012569,2]
[418985165,1774710646287,-828.22564671,0.00012569,2]
[418985166,1774710646297,-828.22564671,0.00012569,2]
[418985167,1774710646306,-217.13087195,0.00012569,2]
[418985168,1774710646318,-572.72623037,0.00012569,2]
[418985169,1774710646408,-38.36854439,0.00012569,2]
[418985170,1774710646418,-828.22564671,0.00012569,2]
[418985171,1774710646429,-828.22564671,0.00012569,2]
[418985172,1774710646439,-828.22564671,0.00012569,2]
[418985173,1774710646449,-828.22564671,0.00012569,2]
[418985174,1774710646459,-828.22564671,0.00012569,2]
[418985175,1774710646470,-751.05021157,0.00012569,2]
[418985185,1774710672816,1100.0,9.178e-05,2]
[418985186,1774710673338,1000.0,9.446e-05,2]
[418985187,1774710673868,1130.0,9.69e-05,2]
[418985188,1774710674397,1690.0,9.981e-05,2]
[418985189,1774710675213,2610.0,0.00010172,2]
[418985190,1774710677357,2090.72,0.00010463,2]
[418985191,1774710686054,379.29,0.00010681,2]
[418985192,1774710686081,1720.71,0.00010681,2]
[418985193,1774710686438,947.23,0.00010875,2]
[418985195,1774710753040,-1680.0,0.0001054,2]
[418985196,1774710753083,-1200.0,0.0001089,2]
[418985197,1774710753122,-700.0,0.00011133,2]
[418985198,1774710753164,-1050.0,0.00011347,2]
[418985199,1774710753342,-750.0,0.00011692,2]
[418985201,1774710814714,1206.96,0.00011448,2]
[418985202,1774710847896,3546.896485,7.945e-05,2]
[418985204,1774710989465,169.42125053,0.0001,2]
[418985205,1774711000413,816.33,7.777e-05,2]
[418985206,1774711040105,-362.26616818,0.00011946,2]
[418985207,1774711040139,-1500.0,0.00012011,2]
[418985208,1774711040171,-250.0,0.00012029,2]
[418985209,1774711040202,-775.47766364,0.00012046,2]
[418985210,1774711047313,-4224.52233636,0.00012046,2]
[418985211,1774711047343,-500.0,0.00012082,2]
[418985212,1774711047374,-239.97242178,0.00012087,2]
[418985213,1774711050738,-71.02048372,0.00012087,2]
[418985214,1774711050769,-1200.0,0.00012149,2]
[418985215,1774711050800,-300.0,0.00012149,2]
[418985216,1774711050831,-1410.0,0.0001215,2]
[418985217,1774711050860,-362.26616816,0.00012201,2]
[418985218,1774711050888,-300.0,0.0001223,2]
[418985219,1774711050917,-300.0,0.0001223,2]
[418985220,1774711050945,-300.0,0.0001223,2]
[418985221,1774711051160,1513.43669624,0.0001,2]
[418985222,1774711054025,-43.53059456,0.0001,2]
[418985223,1774711054057,-154.29545852,0.0001,2]
[418985224,1774711061976,960.08,7.588e-05,2]
[418985225,1774711062504,800.0,7.819e-05,2]
[418985226,1774711063038,844.45,7.996e-05,2]
[418985227,1774711063567,1800.0,8.192e-05,2]
[418985228,1774711064111,1500.0,8.328e-05,2]
[418985229,1774711064635,600.0,8.589e-05,2]
[418985230,1774711065155,1400.0,8.78e-05,2]
[418985231,1774711065738,988.15,8.867e-05,2]
[418985232,1774711105927,500.0,0.00011911,2]
[418985233,1774711112610,200.0,0.000103,2]
[418985234,1774711124682,387.8213541,0.00017,60]
[418985235,1774711128245,900.0,0.00010034,2]
[418985236,1774711129018,1900.0,0.00010925,2]
[418985237,1774711129279,1525.51,0.00011789,2]
[418985239,1774711191295,1000.0,0.00011351,2]
[418985240,1774711244472,3431.34,0.00011915,2]
[418985241,1774711253973,521.0,0.00011108,2]
[418985242,1774711259775,22.16,0.00011883,2]
[418985243,1774711259805,177.84,0.00011883,2]
[418985244,1774711264343,3306.91,0.00011883,2]
[418985245,1774711277276,497.0641286,8.715e-05,2]
[418985246,1774711277313,638.28349503,8.715e-05,2]
[418985247,1774711279032,-435.89577801,8.715e-05,2]
[418985248,1774711316744,1500.0,8.423e-05,2]
[418985249,1774711317576,1410.0,9.232e-05,2]
[418985250,1774711318113,815.68,0.00010087,2]
[418985251,1774711379817,397.78,9.844e-05,2]
[418985252,1774711380363,382.11,0.00010725,2]
[418985253,1774711380874,389.93,0.00011665,2]
[418985254,1774711437896,150.0,0.00011766,2]
[418985255,1774711442694,312.5,0.00011286,2]
[418985256,1774711455459,224.27,0.0001171,3]
[418985257,1774711457246,834.48670674,0.00011929,2]
[418985258,1774711457344,206.34292365,0.00011929,2]
[418985259,1774711462444,327.09,0.00011687,2]
[418985260,1774711499182,150.0,0.00011766,2]
[418985262,1774711591480,-184.6297,0.00012045,2]
[418985263,1774711591510,-250.0,0.00012088,2]
[418985264,1774711591543,-395.17,0.00012145,2]
[418985265,1774711591572,-1200.0,0.00012229,2]
[418985266,1774711591602,-162.0,0.00012229,2]
[418985267,1774711591632,-300.0,0.00012229,2]
[418985268,1774711591663,-1200.0,0.00012229,2]
[418985269,1774711591692,-300.0,0.00012229,2]
[418985270,1774711591722,-297.0,0.0001223,2]
[418985271,1774711593627,-1892.88,0.0001228,2]
[418985272,1774711596572,-3785.76,0.0001228,2]
[418985273,1774711599735,-2428.49,0.0001228,2]
[418985274,1774711612101,1500.0,0.00011662,2]
[418985275,1774711627593,1100.0,0.00011423,2]
[418985276,1774711628134,700.0,0.00011677,2]
[418985277,1774711628652,800.0,0.00011927,2]
[418985278,1774711659574,-150.0,0.00011662,2]
[418985279,1774711663364,9700.01,0.00011644,2]
[418985280,1774711696088,-500.0,0.00028871,120]
[418985284,1774711769085,163.8,9.111e-05,2]
[418985285,1774711818400,-540.0,0.00010052,2]
[418985286,1774711818430,-261.0,0.00010052,2]
[418985287,1774711818459,-163.8,0.00010629,2]
[418985288,1774711818493,-530.0,0.00010917,2]
[418985289,1774711818526,-1000.0,0.0001093,2]
[418985290,1774711818558,-250.0,0.00011057,2]
[418985291,1774711818589,-540.0,0.00011262,2]
[418985292,1774711818620,-210.88,0.00011363,2]
[418985293,1774711818652,-800.0,0.00011629,2]
[418985294,1774711818681,-351.46,0.00011644,2]
[418985295,1774711824450,-705.73,0.00011644,2]
[418985296,1774711824495,-211.01,0.00011755,2]
[418985297,1774711824551,-1200.0,0.00011817,2]
[418985311,1774711834926,-700.0,0.00012053,2]
[418985312,1774711834935,-163.8,0.00012148,2]
[418985313,1774711834946,-246.81079819,0.00012157,2]
[418985314,1774711835051,-53.18920181,0.00012157,2]
[418985315,1774711835061,-426.0,0.00012158,2]
[418985316,1774711835071,-1200.0,0.00012158,2]
[418985317,1774711835080,-30568.4331171,0.00012159,2]
[418985318,1774711835090,-181.13308408,0.00012186,2]
[418985319,1774711835099,-181.13308408,0.00012192,2]
[418985320,1774711835110,-4475.52673328,0.00012192,2]
[418985321,1774711835120,-919.85,0.00012255,2]
[418985322,1774711835130,-150.0,0.00012279,2]
[418985323,1774711835140,-6911.10840627,0.0001228,2]
[418985324,1774711835151,-5000.0,0.00012286,2]
[418985325,1774711835160,-9999.99,0.00012292,2]
[418985326,1774711835170,-150.99,0.00012292,2]
[418985327,1774711835180,-28480.0,0.00012292,2]
[418985328,1774711835190,-3852.53,0.00012292,2]
[418985329,1774711835200,-4201.58,0.00012292,2]
[418985330,1774711835211,-1479.88,0.00012292,2]
[418985331,1774711835221,-4999.99,0.00012292,2]
[418985332,1774711835230,-17079.2,0.00012292,2]
[418985333,1774711835241,-9999.99,0.00012292,2]
[418985334,1774711835250,-5000.0,0.00012329,2]
[418985335,1774711835260,-5000.0,0.00012329,2]
[418985336,1774711835271,-8068.68986246,0.00012355,2]
[418985337,1774711835281,-1200.0,0.00012393,2]
[418985338,1774711835291,-272.99,0.0001241,2]
[418985339,1774711835301,-878.32470845,0.00012438,2]
[418985340,1774711835311,-941.57902204,0.00012438,2]
[418985341,1774711835321,-941.57902204,0.00012438,2]
[418985342,1774711835332,-941.57902204,0.00012438,2]
[418985343,1774711835342,-941.57902204,0.00012438,2]
[418985345,1774711835351,-941.57902204,0.00012438,2]
[418985346,1774711835360,-941.57902204,0.00012438,2]
[418985347,1774711835370,-941.57902204,0.00012438,2]
[418985348,1774711835380,-941.57902204,0.00012438,2]
[418985349,1774711835390,-941.57902204,0.00012438,2]
[418985350,1774711835400,-941.57902204,0.00012438,2]
[418985351,1774711835411,-941.57902204,0.00012438,2]
[418985352,1774711835421,-941.57902204,0.00012438,2]
[418985353,1774711835430,-941.57902204,0.00012438,2]
[418985354,1774711835440,-941.57902204,0.00012438,2]
[418985355,1774711835449,-941.57902204,0.00012438,2]
[418985356,1774711835459,-941.57902204,0.00012438,2]
[418985357,1774711835468,-941.57902204,0.00012438,2]
[418985358,1774711835478,-941.57902204,0.00012438,2]
[418985359,1774711835487,-941.57902204,0.00012438,2]
[418985360,1774711835497,-941.57902204,0.00012438,2]
[418985361,1774711835506,-941.57902204,0.00012438,2]
[418985362,1774711835516,-941.57902204,0.00012438,2]
[418985363,1774711835525,-941.57902204,0.00012438,2]
[418985364,1774711835535,-941.57902204,0.00012438,2]
[418985365,1774711835545,-941.57902204,0.00012438,2]
[418985366,1774711835554,-941.57902204,0.00012438,2]
[418985367,1774711835564,-941.57902204,0.00012438,2]
[418985368,1774711835574,-941.57902204,0.00012438,2]
[418985369,1774711835583,-941.57902204,0.00012438,2]
[418985370,1774711835593,-941.57902204,0.00012438,2]
[418985371,1774711835603,-941.57902204,0.00012438,2]
[418985372,1774711835614,-941.57902204,0.00012438,2]
[418985373,1774711835623,-941.57902204,0.00012438,2]
[418985374,1774711835633,-941.57902204,0.00012438,2]
[418985375,1774711835642,-941.57902204,0.00012438,2]
[418985376,1774711835652,-941.57902204,0.00012438,2]
[418985377,1774711835662,-941.57902204,0.00012438,2]
[418985378,1774711835672,-941.57902204,0.00012438,2]
[418985379,1774711835681,-501.90856676,0.00012438,2]
[418985380,1774711835691,-947.99720026,0.00012438,2]
[418985381,1774711835700,-947.99720026,0.00012438,2]
[418985382,1774711835709,-947.99720026,0.00012438,2]
[418985383,1774711835719,-947.99720026,0.00012438,2]
[418985384,1774711835728,-947.99720026,0.00012438,2]
[418985385,1774711835740,-947.99720026,0.00012438,2]
[418985386,1774711835750,-947.99720026,0.00012438,2]
[418985387,1774711835759,-947.99720026,0.00012438,2]
[418985388,1774711835769,-947.99720026,0.00012438,2]
[418985389,1774711835779,-947.99720026,0.00012438,2]
[418985390,1774711835789,-947.99720026,0.00012438,2]
[418985391,1774711835798,-947.99720026,0.00012438,2]
[418985392,1774711835809,-947.99720026,0.00012438,2]
[418985393,1774711835819,-947.99720026,0.00012438,2]
[418985394,1774711835829,-947.99720026,0.00012438,2]
[418985395,1774711835838,-947.99720026,0.00012438,2]
[418985396,1774711835847,-947.99720026,0.00012438,2]
[418985397,1774711835857,-947.99720026,0.00012438,2]
[418985398,1774711835866,-947.99720026,0.00012438,2]
[418985399,1774711835876,-947.99720026,0.00012438,2]
[418985400,1774711835885,-947.99720026,0.00012438,2]
[418985401,1774711835895,-947.99720026,0.00012438,2]
[418985402,1774711835905,-947.99720026,0.00012438,2]
[418985403,1774711835915,-947.99720026,0.00012438,2]
[418985404,1774711835924,-947.99720026,0.00012438,2]
[418985405,1774711835934,-547.17603716,0.00012438,2]
[418985407,1774711837523,-400.8211631,0.00012438,2]
[418985408,1774711837532,-6260.09897958,0.00012439,2]
[418985409,1774711837546,-1367.2009,0.00012439,2]
[418985412,1774711837593,-2372.69012042,0.00012439,2]
[418985413,1774711837602,-1328.38137756,0.00012439,2]
[418985414,1774711837614,-1852.927,0.00012439,2]
[418985415,1774711837656,-593.41340116,0.00012439,2]
[418985416,1774711837668,-1176.555,0.00012439,2]
[418985417,1774711837679,-458.40677879,0.00012439,2]
[418985418,1774711837690,-1557.45919669,0.00012439,2]
[418985419,1774711837779,-323.12131926,0.00012439,2]
[418985420,1774711837790,-216.45592654,0.00012439,2]
[418985421,1774711837800,-9999.99,0.00012439,2]
[418985422,1774711837810,-999.99,0.00012439,2]
[418985423,1774711837819,-418.38,0.00012441,2]
[418985424,1774711837829,-150.0,0.000125,2]
[418985425,1774711837839,-222.0,0.00012539,2]
[418985426,1774711837848,-200.0,0.00012547,2]
[418985427,1774711837857,-102.73035191,0.00012547,2]
[418985428,1774711837955,-397.26964809,0.00012547,2]
[418985429,1774711837965,-500.0,0.00012547,2]
[418985430,1774711837974,-500.0,0.00012547,2]
[418985431,1774711837983,-502.64731971,0.00012547,2]
[418985432,1774711837994,-500.0,0.00012547,2]
[418985433,1774711838003,-500.0,0.00012547,2]
[418985434,1774711838013,-500.0,0.00012547,2]
[418985435,1774711838023,-151.0,0.00012547,2]
[418985436,1774711838034,-500.0,0.00012547,2]
[418985437,1774711838044,-151.0,0.00012547,2]
[418985438,1774711838054,-116.30907116,0.00012547,2]
[418985439,1774711838066,-34.69092884,0.00012547,2]
[418985441,1774711838075,-500.0,0.00012547,2]
[418985442,1774711838085,-151.0,0.00012547,2]
[418985443,1774711838094,-500.0,0.00012547,2]
[418985444,1774711838105,-151.0,0.00012547,2]
[418985445,1774711838115,-500.0,0.00012547,2]
[418985446,1774711838125,-136.09181918,0.00012547,2]
[418985516,1774711840159,-500.0,0.00012438,2]
[418985517,1774711840169,-14.90818082,0.00012547,2]
[418985518,1774711840178,-500.0,0.00012547,2]
[418985519,1774711840188,-500.0,0.00012547,2]
[418985520,1774711840198,-151.0,0.00012547,2]
[418985521,1774711840208,-500.0,0.00012547,2]
[418985522,1774711840217,-500.0,0.00012547,2]
[418985523,1774711840228,-151.0,0.00012547,2]
[418985524,1774711840239,-500.0,0.00012547,2]
[418985525,1774711840249,-500.0,0.00012547,2]
[418985526,1774711840259,-151.0,0.00012547,2]
[418985527,1774711840268,-151.0,0.00012547,2]
[418985528,1774711840278,-500.0,0.00012547,2]
[418985529,1774711840494,-151.0,0.00012547,2]
[418985530,1774711840504,-500.0,0.00012547,2]
[418985531,1774711840515,-151.0,0.00012547,2]
[418985532,1774711840524,-500.0,0.00012547,2]
[418985533,1774711840534,-151.0,0.00012547,2]
[418985534,1774711840544,-500.0,0.00012547,2]
[418985535,1774711840554,-151.0,0.00012547,2]
[418985536,1774711840563,-500.0,0.00012547,2]
[418985537,1774711840573,-151.0,0.00012547,2]
[418985538,1774711840582,-151.0,0.00012547,2]
[418985539,1774711840592,-151.0,0.00012547,2]
[418985540,1774711840602,-524.17339372,0.00012547,2]
[418985541,1774711840611,-151.0,0.00012547,2]
[418985542,1774711840621,-151.0,0.00012547,2]
[418985543,1774711840631,-151.0,0.00012547,2]
[418985544,1774711840641,-151.0,0.00012547,2]
[418985545,1774711840650,-151.0,0.00012547,2]
[418985546,1774711840659,-151.0,0.00012547,2]
[418985547,1774711840669,-151.0,0.00012547,2]
[418985548,1774711840679,-151.0,0.00012547,2]
[418985549,1774711840688,-151.0,0.00012547,2]
[418985550,1774711840698,-151.0,0.00012547,2]
[418985551,1774711840707,-151.0,0.00012547,2]
[418985552,1774711840716,-151.0,0.00012547,2]
[418985553,1774711840726,-151.0,0.00012547,2]
[418985554,1774711840735,-151.0,0.00012547,2]
[418985555,1774711840745,-1386.78395259,0.00012547,2]
[418985557,1774711840754,-1034.18,0.00012548,2]
[418985558,1774711840764,-33003.204,0.00012555,2]
[418985559,1774711840773,-2646.6329,0.00012555,2]
[418985560,1774711840783,-500.0,0.00012568,2]
[418985561,1774711840792,-500.0,0.00012568,2]
[418985562,1774711840801,-500.0,0.00012568,2]
[418985563,1774711840811,-500.0,0.00012568,2]
[418985564,1774711840820,-500.0,0.00012568,2]
[418985565,1774711840829,-500.0,0.00012568,2]
[418985566,1774711840839,-500.0,0.00012568,2]
[418985567,1774711840848,-500.0,0.00012568,2]
[418985568,1774711840858,-500.0,0.00012568,2]
[418985569,1774711840871,-500.0,0.00012568,2]
[418985570,1774711840881,-500.0,0.00012568,2]
[418985571,1774711840891,-500.0,0.00012568,2]
[418985572,1774711840900,-500.0,0.00012568,2]
[418985573,1774711840910,-500.0,0.00012568,2]
[418985574,1774711840919,-500.0,0.00012568,2]
[418985575,1774711840928,-500.0,0.00012568,2]
[418985576,1774711840939,-500.0,0.00012568,2]
[418985577,1774711840950,-500.0,0.00012568,2]
[418985578,1774711840960,-500.0,0.00012568,2]
[418985579,1774711840969,-500.0,0.00012568,2]
[418985580,1774711840979,-500.0,0.00012568,2]
[418985581,1774711840990,-500.0,0.00012568,2]
[418985582,1774711841000,-500.0,0.00012568,2]
[418985583,1774711841010,-500.0,0.00012568,2]
[418985584,1774711841020,-500.0,0.00012568,2]
[418985585,1774711841029,-487.16585343,0.00012568,2]
[418985586,1774711841039,-500.0,0.00012568,2]
[418985587,1774711841048,-500.0,0.00012568,2]
[418985588,1774711841058,-496.50447388,0.00012568,2]
[418985589,1774711841069,-34994.98,0.00012588,2]
[418985590,1774711841079,-813.97,0.000126,2]
[418985591,1774711841090,-400.0,0.000127,4]
[418985592,1774711841101,-300.0,0.00012748,2]
[418985593,1774711841111,-800.0,0.000128,4]
[418985594,1774711841122,-250.0,0.00012809,2]
[418985595,1774711841132,-598.1,0.00012827,2]
[418985596,1774711841142,-2066.87363142,0.00012842,2]
[418985597,1774711841151,-587.05017188,0.00012847,2]
[418985598,1774711841161,-342.1220926,0.00012847,2]
[418985599,1774711841171,-1300.0,0.000129,4]
[418985600,1774711841181,-3656.3021,0.00012904,2]
[418985601,1774711841190,-513.23,0.00012914,2]
[418985602,1774711841200,-195.78200294,0.00012932,2]
[418985603,1774711841210,-881.13,0.00012934,2]
[418985604,1774711841219,-500.0,0.00012941,2]
[418985605,1774711841229,-500.0,0.00012941,2]
[418985606,1774711841239,-500.0,0.00012941,2]
[418985607,1774711841248,-272.20078256,0.00012941,2]
[418985608,1774711841258,-407.72624236,0.00012941,2]
[418985609,1774711841268,-500.0,0.00012941,2]
[418985610,1774711841278,-500.0,0.00012941,2]
[418985611,1774711841287,-500.0,0.00012941,2]
[418985612,1774711841297,-232.05642781,0.00012941,2]
[418985613,1774711841306,-2663.30803602,0.00012942,2]
[418985614,1774711841321,-2238.0,0.00012942,2]
[418985615,1774711841333,-1397.0,0.00012942,2]
[418985616,1774711841349,-774.6985844,0.00012942,2]
[418985617,1774711841365,-17067.89516353,0.00012942,2]
[418985618,1774711841376,-34646.86462584,0.00012942,2]
[418985619,1774711841388,-2987.2,0.00012942,2]
[418985620,1774711841399,-2095.592,0.00012942,2]
[418985621,1774711841411,-1603.7496992,0.00012942,2]
[418985627,1774711842823,-4907.59960843,0.00012942,2]
[418985628,1774711843194,-2291.1697237,0.00012942,2]
[418985629,1774711843273,-443.655793,0.00012942,2]
[418985643,1774711845885,-1180.09,0.00012942,2]
[418985644,1774711845898,-3493.02497324,0.00012942,2]
[418985645,1774711846351,-414.56,0.00012942,2]
[418985646,1774711846363,-2781.04344628,0.00012942,2]
[418985647,1774711846377,-1959.29828611,0.00012942,2]
[418985898,1774711856601,175.0,0.00025821,120]
[418985899,1774711946650,-1900.0,0.00011431,2]
[418985900,1774712016815,171.68,0.00011009,2]
[418985901,1774712039495,200.48289305,0.0001,2]
[418985902,1774712051128,166.66,0.00010959,2]
[418985903,1774712051284,166.66,0.00011169,2]
[418985904,1774712051495,166.66,0.0001138,2]
[418985905,1774712078374,1000.0,0.00011077,2]
[418985906,1774712142606,362.47,0.00010527,2]
[418985907,1774712143134,484.24,0.00011369,2]
[418985908,1774712216369,-800.0,0.00010432,2]
[418985909,1774712216405,-600.0,0.00011392,2]
[418985910,1774712216436,-3541.23,0.0001144,2]
[418985911,1774712222188,-300.0,0.00011439,2]
[418985912,1774712222256,-117.55,0.0001144,2]
[418985913,1774712222322,-2238.5,0.0001144,2]
[418985914,1774712225410,-4687.91,0.0001144,2]
[418985915,1774712231377,-1600.0,0.00011447,2]
[418985916,1774712231444,-250.0,0.00011515,2]
[418985917,1774712231511,-166.66,0.00011591,2]
[418985918,1774712231582,-1600.0,0.00011621,2]
[418985919,1774712231649,-166.66,0.00011801,2]
[418985920,1774712231714,-300.0,0.00011867,2]
[418985921,1774712231780,-633.37,0.00011868,2]
[418985922,1774712269304,630.0,0.00010707,2]
[418985923,1774712350752,-5162.02,0.00011649,2]
[418985924,1774712350778,-1200.0,0.00011758,2]
[418985925,1774712350802,-300.0,0.00011758,2]
[418985926,1774712350825,-300.0,0.00011758,2]
[418985927,1774712350849,-300.0,0.00011758,2]
[418985928,1774712350871,-5000.0,0.00011759,2]